fUST/lending_fUST_20250420
["ID","MTS","AMOUNT","RATE_DAILY","PERIOD"]
[358422626,1745122232065,-361.057997,0.000191,2]
[358422627,1745122232075,-153.0,0.000191,2]
[358422628,1745122232084,-308.0277835,0.000191,2]
[358422630,1745122232093,-738.2784474,0.000191,2]
[358422632,1745122232103,-155.6052105,0.000191,2]
[358422633,1745122232113,-590.8495724,0.000191,2]
[358422634,1745122232123,-155.5874151,0.000191,2]
[358422635,1745122232136,-290.5860477,0.000191,2]
[358422636,1745122232146,-619.2059942,0.000191,2]
[358422637,1745122232156,-174.6476221,0.000191,2]
[358422638,1745122232166,-361.057997,0.000191,2]
[358422639,1745122232177,-668.95278063,0.000191,2]
[358422641,1745122238156,-780.5083329,0.00018979,2]
[358422650,1745122240259,-633.1,0.00018979,2]
[358422651,1745122240360,-111.52841758,0.00018979,2]
[358422652,1745122240370,-161.26482726,0.000191,2]
[358422653,1745122240383,-301.54818051,0.000191,2]
[358422654,1745122240392,-119.32225485,0.000191,2]
[358422656,1745122243178,-194.40891165,0.000191,2]
[358422657,1745122243188,-174.6476221,0.000191,2]
[358422658,1745122243198,-174.6476221,0.000191,2]
[358422659,1745122243210,-230.12584415,0.000191,2]
[358422695,1745122246055,-211.12999335,0.000191,2]
[358422696,1745122246067,-174.6476221,0.000191,2]
[358422697,1745122246079,-361.057997,0.000191,2]
[358422698,1745122246091,-210.613,0.00019137,2]
[358422699,1745122246103,-1270.14418047,0.00019157,2]
[358422718,1745122807233,316.69996993,0.00017689,2]
[358422719,1745122807331,316.69996993,0.00017857,2]
[358422724,1745122899923,6588.6413927,0.00017921,2]
[358422728,1745123323991,4038.52072299,0.000175,4]
[358422730,1745123376456,272.0,0.00017,6]
[358422750,1745123432184,-250.0,0.00018308,2]
[358422751,1745123432194,-317.69533516,0.00018631,2]
[358422752,1745123432205,-238.02419621,0.00018879,2]
[358422753,1745123432215,-1470.55699336,0.00018899,2]
[358422754,1745123432224,-218.60759257,0.00018899,2]
[358422755,1745123432234,-396.6647227,0.000189,2]
[358422756,1745123432243,-276.53901161,0.000189,2]
[358422757,1745123432253,-276.5390116,0.00018989,2]
[358422758,1745123432262,-300.0,0.00018996,2]
[358422759,1745123432271,-300.0,0.00018996,2]
[358422760,1745123432282,-500.0,0.00018997,2]
[358422761,1745123432292,-500.0,0.00018997,2]
[358422762,1745123432303,-500.0,0.00018997,2]
[358422763,1745123432312,-500.0,0.00018997,2]
[358422764,1745123432321,-490.32960576,0.00018997,2]
[358422765,1745123432331,-500.0,0.00018997,2]
[358422767,1745123432341,-500.0,0.00018997,2]
[358422769,1745123432350,-500.0,0.00018997,2]
[358422770,1745123432359,-500.0,0.00018997,2]
[358422771,1745123432369,-500.0,0.00018997,2]
[358422772,1745123432378,-54.5316165,0.00018998,2]
[358422773,1745123432394,-1902.30345075,0.00018998,2]
[358422774,1745123432406,-39539.26795545,0.00018998,2]
[358422775,1745123432416,-5000.0,0.00018999,2]
[358422776,1745123432426,-419.39728571,0.00019,2]
[358422803,1745123438345,-1126.29762642,0.00019,2]
[358422804,1745123438357,-13434.0010657,0.00019,2]
[358422805,1745123438367,-276.5390116,0.00019078,2]
[358422806,1745123438377,-218.60759257,0.00019078,2]
[358422807,1745123438387,-200.018,0.00019079,2]
[358422808,1745123438397,-1197.463494,0.00019082,2]
[358422809,1745123438407,-174.6476221,0.000191,2]
[358422810,1745123438417,-174.6476221,0.000191,2]
[358422811,1745123438427,-174.6476221,0.000191,2]
[358422812,1745123438437,-157.0640115,0.000191,2]
[358422813,1745123438447,-174.6476221,0.000191,2]
[358422814,1745123438456,-157.5095296,0.000191,2]
[358422815,1745123438465,-361.1558387,0.000191,2]
[358422816,1745123438474,-153.0,0.000191,2]
[358422817,1745123438484,-591.3543284,0.000191,2]
[358422818,1745123438494,-174.6476221,0.000191,2]
[358422819,1745123438503,-2215.61160914,0.00019157,2]
[358422820,1745123438514,-151.0,0.00019161,2]
[358422821,1745123438524,-207.4,0.00019161,2]
[358422822,1745123438533,-188.44106331,0.00019171,2]
[358422823,1745123438543,-500.0,0.00019171,2]
[358422824,1745123438554,-492.98460954,0.00019171,2]
[358422825,1745123438565,-500.0,0.00019171,2]
[358422826,1745123438575,-422.00127487,0.00019171,2]
[358422827,1745123438584,-3885.91211938,0.00019172,3]
[358422828,1745123438595,-61236.45753458,0.00019172,2]
[358422829,1745123438606,-500.0,0.00019173,2]
[358422830,1745123438615,-500.0,0.00019173,2]
[358422831,1745123438625,-472.88437696,0.00019173,2]
[358422832,1745123438634,-500.0,0.00019173,2]
[358422833,1745123438644,-369.47272789,0.00019173,2]
[358422834,1745123438654,-500.0,0.00019173,2]
[358422835,1745123438663,-500.0,0.00019173,2]
[358422836,1745123438673,-500.0,0.00019173,2]
[358422837,1745123438682,-500.0,0.00019173,2]
[358422838,1745123438692,-500.0,0.00019173,2]
[358422839,1745123438702,-501.37281582,0.00019173,2]
[358422840,1745123438711,-500.0,0.00019173,2]
[358422841,1745123438720,-500.0,0.00019173,2]
[358422842,1745123438730,-500.0,0.00019173,2]
[358422843,1745123438741,-500.0,0.00019173,2]
[358422844,1745123438751,-500.0,0.00019173,2]
[358422845,1745123438762,-500.0,0.00019173,2]
[358422846,1745123438771,-212.90642921,0.00019173,2]
[358422847,1745123438796,-287.09357079,0.00019173,2]
[358422848,1745123438805,-212.90642921,0.00019173,2]
[358422849,1745123438821,-287.09357079,0.00019173,2]
[358422850,1745123438831,-500.0,0.00019173,2]
[358422851,1745123438842,-163.73622765,0.00019173,2]
[358422856,1745123440628,-331.0,0.00019173,2]
[358422857,1745123440685,-5.26377235,0.00019173,2]
[358422858,1745123440696,-500.0,0.00019173,2]
[358422859,1745123440705,-500.0,0.00019173,2]
[358422860,1745123440715,-8.71982765,0.00019173,2]
[358422888,1745123443286,-268.02386235,0.00019173,2]
[358422889,1745123443296,-159.49657754,0.00019173,2]
[358422890,1745123443306,-201.56934322,0.00019173,2]
[358422891,1745123443317,-239.181503,0.00019176,2]
[358422892,1745123443326,-151.0,0.00019176,2]
[358422893,1745123443336,-167.649101,0.00019176,2]
[358422894,1745123443346,-160.0,0.00019177,2]
[358422895,1745123443356,-300.29488557,0.00019177,2]
[358422896,1745123443366,-500.0,0.00019178,2]
[358422897,1745123443377,-500.0,0.00019178,2]
[358422898,1745123443387,-570.18,0.00019178,2]
[358422899,1745123443397,-500.0,0.00019178,2]
[358422900,1745123443407,-634.28,0.00019178,2]
[358422901,1745123443421,-500.0,0.00019178,2]
[358422902,1745123443432,-500.0,0.00019178,2]
[358422903,1745123443443,-500.0,0.00019178,2]
[358422904,1745123443453,-563.15,0.00019178,2]
[358422905,1745123443463,-500.0,0.00019178,2]
[358422906,1745123443474,-500.0,0.00019178,2]
[358422907,1745123443484,-500.0,0.00019178,2]
[358422910,1745123443495,-500.0,0.00019178,2]
[358422911,1745123443505,-500.0,0.00019178,2]
[358422912,1745123443515,-500.0,0.00019178,2]
[358422913,1745123443525,-500.0,0.00019178,2]
[358422914,1745123443535,-500.0,0.00019178,2]
[358422915,1745123443546,-804.77,0.00019178,2]
[358422916,1745123443556,-500.0,0.00019178,2]
[358422917,1745123443567,-500.0,0.00019178,2]
[358422918,1745123443577,-500.0,0.00019178,2]
[358422919,1745123443587,-500.0,0.00019178,2]
[358422920,1745123443598,-506.2,0.00019178,2]
[358422921,1745123443608,-719.67,0.00019178,2]
[358422922,1745123443620,-500.0,0.00019178,2]
[358422923,1745123443630,-500.0,0.00019178,2]
[358422924,1745123443640,-508.22,0.00019178,2]
[358422925,1745123443651,-155.928136,0.00019178,2]
[358422926,1745123443661,-500.0,0.00019178,2]
[358422927,1745123443671,-500.0,0.00019178,2]
[358422928,1745123443682,-500.0,0.00019178,2]
[358422929,1745123443692,-628.84,0.00019178,2]
[358422930,1745123443701,-500.0,0.00019178,2]
[358422931,1745123443711,-852.8,0.00019178,2]
[358422932,1745123443721,-500.0,0.00019178,2]
[358422933,1745123443730,-500.0,0.00019178,2]
[358422934,1745123443740,-695.87,0.00019178,2]
[358422935,1745123443749,-500.0,0.00019178,2]
[358422936,1745123443759,-196.03709126,0.00019178,2]
[358422937,1745123443768,-636.65530858,0.00019178,2]
[358422938,1745123443778,-500.0,0.00019178,2]
[358422939,1745123444001,-500.0,0.00019178,2]
[358422940,1745123444011,-424.9411511,0.00019178,2]
[358422941,1745123444026,-680.2588489,0.00019178,2]
[358422942,1745123444035,-500.0,0.00019178,2]
[358422943,1745123444046,-605.17,0.00019178,2]
[358422944,1745123444057,-500.0,0.00019178,2]
[358422945,1745123444066,-500.0,0.00019178,2]
[358422946,1745123444076,-608.89,0.00019178,2]
[358422947,1745123444086,-500.0,0.00019178,2]
[358422948,1745123444096,-500.0,0.00019178,2]
[358422949,1745123444106,-155.68114135,0.00019178,2]
[358422950,1745123444118,-344.31885865,0.00019178,2]
[358422951,1745123444127,-500.0,0.00019178,2]
[358422952,1745123444137,-500.0,0.00019178,2]
[358422953,1745123444147,-500.0,0.00019178,2]
[358422954,1745123444157,-500.0,0.00019178,2]
[358422955,1745123444167,-500.0,0.00019178,2]
[358422956,1745123444177,-110.47265454,0.00019178,2]
[358422957,1745123444189,-550.73773191,0.00019178,2]
[358422958,1745123444210,-773.70961355,0.00019178,2]
[358422959,1745123444219,-219.53629083,0.00019178,2]
[358422960,1745123444232,-280.46370917,0.00019178,2]
[358422961,1745123444242,-539.09,0.00019178,2]
[358422962,1745123444251,-500.0,0.00019178,2]
[358422963,1745123444261,-548.9,0.00019178,2]
[358422964,1745123444271,-500.0,0.00019178,2]
[358422965,1745123444281,-500.0,0.00019178,2]
[358422966,1745123444291,-183.64104933,0.00019178,2]
[358422967,1745123444304,-400.01895067,0.00019178,2]
[358422968,1745123444314,-145.22813859,0.00019178,2]
[358422975,1745123446398,-354.77186141,0.00019178,2]
[358422976,1745123446408,-500.0,0.00019178,2]
[358422977,1745123446419,-500.0,0.00019178,2]
[358422978,1745123446429,-500.0,0.00019178,2]
[358422979,1745123446439,-500.0,0.00019178,2]
[358422980,1745123446448,-510.95,0.00019178,2]
[358422981,1745123446458,-2856.48241779,0.00019178,2]
[358422982,1745123446471,-313.45758221,0.00019178,2]
[358422983,1745123446482,-500.0,0.00019178,2]
[358422984,1745123446502,-500.0,0.00019178,2]
[358422985,1745123446514,-500.0,0.00019178,2]
[358422986,1745123446525,-1089.53,0.00019178,2]
[358422987,1745123446535,-500.0,0.00019178,2]
[358422988,1745123446546,-500.0,0.00019178,2]
[358422989,1745123446557,-500.0,0.00019178,2]
[358422990,1745123446567,-537.36,0.00019178,2]
[358422991,1745123446578,-7207.99,0.00019178,2]
[358422992,1745123446589,-543.87,0.00019178,2]
[358422993,1745123446601,-500.0,0.00019178,2]
[358422994,1745123446611,-500.0,0.00019178,2]
[358422995,1745123446622,-500.0,0.00019178,2]
[358422996,1745123446633,-651.96,0.00019178,2]
[358422997,1745123446643,-500.0,0.00019178,2]
[358422998,1745123446654,-500.0,0.00019178,2]
[358422999,1745123446664,-667.92,0.00019178,2]
[358423000,1745123446675,-500.0,0.00019178,2]
[358423001,1745123446685,-208.59489262,0.00019178,2]
[358423002,1745123446695,-500.0,0.00019178,2]
[358423003,1745123446705,-500.0,0.00019178,2]
[358423004,1745123446715,-500.0,0.00019178,2]
[358423005,1745123446726,-1008.51,0.00019178,2]
[358423006,1745123446736,-151.0,0.00019178,2]
[358423007,1745123446746,-151.0,0.00019178,2]
[358423008,1745123446756,-151.0,0.00019178,2]
[358423009,1745123446766,-159.340329,0.00019178,2]
[358423010,1745123446776,-757.1,0.00019178,2]
[358423011,1745123446786,-500.0,0.00019178,2]
[358423012,1745123446796,-638.65,0.00019178,2]
[358423013,1745123446807,-561.84,0.00019178,2]
[358423014,1745123446817,-500.0,0.00019178,2]
[358423015,1745123446827,-82.06847397,0.00019178,2]
[358423016,1745123469818,253.444153,0.00018,30]
[358423017,1745123654181,28597.73886915,0.0001801,2]
[358423020,1745123919735,178.1921548,0.00017978,2]
[358423059,1745124632467,-250.0,0.00018208,2]
[358423061,1745124632478,-408.60713291,0.00018208,2]
[358423063,1745124632488,-316.36818153,0.00018494,2]
[358423065,1745124632498,-5000.0,0.00018807,2]
[358423067,1745124632508,-316.36818153,0.00018894,2]
[358423069,1745124632518,-300.0,0.00018898,2]
[358423070,1745124632529,-300.0,0.00018899,2]
[358423071,1745124632539,-810.09811987,0.000189,2]
[358423073,1745124632549,-564.44013563,0.000189,2]
[358423075,1745124632559,-1517.46542147,0.000189,2]
[358423077,1745124632570,-196.44,0.00018963,2]
[358423079,1745124632580,-500.0,0.00018973,2]
[358423081,1745124632590,-500.0,0.00018973,2]
[358423083,1745124632600,-500.0,0.00018973,2]
[358423085,1745124632610,-500.0,0.00018973,2]
[358423087,1745124632620,-500.0,0.00018973,2]
[358423089,1745124632631,-500.0,0.00018973,2]
[358423091,1745124632640,-500.0,0.00018973,2]
[358423093,1745124632650,-500.0,0.00018973,2]
[358423095,1745124632660,-500.0,0.00018973,2]
[358423097,1745124632669,-500.0,0.00018973,2]
[358423099,1745124632679,-501.54552968,0.00018973,2]
[358423101,1745124632689,-500.0,0.00018973,2]
[358423102,1745124632699,-523.72241474,0.00018973,2]
[358423103,1745124632709,-500.0,0.00018973,2]
[358423104,1745124632719,-500.0,0.00018973,2]
[358423105,1745124632728,-500.0,0.00018973,2]
[358423106,1745124632739,-500.0,0.00018973,2]
[358423107,1745124632752,-500.0,0.00018973,2]
[358423108,1745124632761,-500.0,0.00018973,2]
[358423109,1745124632771,-500.0,0.00018973,2]
[358423110,1745124632781,-500.0,0.00018973,2]
[358423111,1745124632791,-151.0,0.00018989,2]
[358423112,1745124632800,-207.4,0.00018989,2]
[358423113,1745124632810,-500.0,0.00018999,2]
[358423114,1745124632822,-500.0,0.00018999,2]
[358423115,1745124632832,-500.0,0.00018999,2]
[358423116,1745124632842,-245.79804229,0.00018999,2]
[358423117,1745124632853,-645.40089241,0.00018999,2]
[358423118,1745124632863,-500.0,0.00018999,2]
[358423119,1745124632873,-278.84920823,0.00018999,2]
[358423120,1745124632882,-161.82741771,0.00018999,2]
[358423121,1745124632892,-54210.41313589,0.00019,2]
[358423122,1745124632902,-370000.0,0.00019,2]
[358423123,1745124632912,-174.6476221,0.00019,2]
[358423124,1745124632921,-174.6476221,0.00019,2]
[358423125,1745124632931,-174.6476221,0.00019,2]
[358423126,1745124632940,-174.6476221,0.00019,2]
[358423127,1745124632950,-174.6476221,0.00019,2]
[358423128,1745124632959,-174.6476221,0.00019,2]
[358423129,1745124632969,-174.6476221,0.00019,2]
[358423130,1745124632979,-174.6476221,0.00019,2]
[358423131,1745124632989,-163.0666654,0.00019,2]
[358423132,1745124632999,-722.2138357,0.00019,2]
[358423133,1745124633008,-174.6476221,0.00019,2]
[358423134,1745124633018,-174.6476221,0.00019,2]
[358423135,1745124633028,-1077.7171446,0.00019082,2]
[358423136,1745124633039,-174.6476221,0.000191,2]
[358423137,1745124633048,-306.0,0.000191,2]
[358423138,1745124633058,-174.6476221,0.000191,2]
[358423139,1745124633068,-438.2485737,0.000191,2]
[358423140,1745124633078,-160.015,0.000191,2]
[358423141,1745124633088,-174.6476221,0.000191,2]
[358423142,1745124633098,-316.36818153,0.00019141,2]
[358423143,1745124633107,-500.0,0.00019178,2]
[358423144,1745124633117,-541.16976027,0.00019178,2]
[358423145,1745124633127,-500.0,0.00019178,2]
[358423146,1745124633136,-500.0,0.00019178,2]
[358423147,1745124633146,-500.0,0.00019178,2]
[358423148,1745124633155,-500.0,0.00019178,2]
[358423149,1745124633166,-500.0,0.00019178,2]
[358423150,1745124633176,-500.0,0.00019178,2]
[358423151,1745124633186,-500.0,0.00019178,2]
[358423152,1745124633196,-500.0,0.00019178,2]
[358423153,1745124633205,-689.68,0.00019178,2]
[358423154,1745124633215,-500.0,0.00019178,2]
[358423155,1745124633224,-500.0,0.00019178,2]
[358423156,1745124633234,-500.0,0.00019178,2]
[358423157,1745124633244,-305.58215116,0.00019178,2]
[358423158,1745124633254,-500.0,0.00019178,2]
[358423159,1745124633263,-146.43546187,0.00019178,2]
[358423199,1745124640779,-360.77973849,0.00019,3]
[358423216,1745124646519,-846.87603181,0.00019,3]
[358423218,1745124805654,160.0,0.00017219,3]
[358423224,1745125419898,2294.53296736,0.00017952,2]
[358423230,1745125816056,-160.12358261,0.00018026,2]
[358423231,1745125831855,-1777.37555389,0.00018052,2]
[358423232,1745125831867,-1449.97861131,0.00018052,2]
[358423233,1745125831877,-230.9674668,0.00018126,2]
[358423234,1745125831886,-160.1235826,0.00018289,2]
[358423235,1745125831896,-160.1235826,0.00018552,2]
[358423236,1745125831905,-160.0,0.00018664,4]
[358423237,1745125831914,-257.04101288,0.00018664,5]
[358423238,1745125831924,-160.1235826,0.00018814,2]
[358423239,1745125831933,-904.78247515,0.000189,2]
[358423240,1745125831943,-157.7523146,0.000189,2]
[358423241,1745125831952,-903.83539418,0.000189,2]
[358423242,1745125831962,-300.0,0.00019077,2]
[358423243,1745125831972,-160.1235826,0.00019077,2]
[358423244,1745125831982,-156.26319174,0.00019078,2]
[358423245,1745125831991,-989.64588533,0.00019078,2]
[358423262,1745125837798,-338.13635843,0.00019078,2]
[358423263,1745125837809,-300.0,0.00019081,2]
[358423264,1745125837819,-274.10373084,0.00019082,2]
[358423274,1745125843719,-695.84169936,0.00019082,2]
[358423275,1745125843729,-207.4,0.00019166,2]
[358423276,1745125843739,-500.0,0.00019176,2]
[358423277,1745125843749,-500.0,0.00019176,2]
[358423278,1745125843759,-500.0,0.00019176,2]
[358423279,1745125843769,-331.65469028,0.00019176,2]
[358423280,1745125843778,-500.0,0.00019176,2]
[358423281,1745125843788,-500.0,0.00019176,2]
[358423282,1745125843798,-500.0,0.00019176,2]
[358423283,1745125843808,-500.0,0.00019176,2]
[358423284,1745125843817,-500.0,0.00019176,2]
[358423285,1745125843827,-500.0,0.00019176,2]
[358423286,1745125843837,-158.88559376,0.00019176,2]
[358423287,1745125843847,-160.015,0.00019177,2]
[358423288,1745125843857,-451.78062469,0.00019177,2]
[358423289,1745125843867,-545.19444576,0.00019177,2]
[358423290,1745125843877,-49651.70084,0.00019177,2]
[358423291,1745125843887,-500.0,0.00019178,2]
[358423293,1745125843896,-500.0,0.00019178,2]
[358423295,1745125843906,-500.0,0.00019178,2]
[358423296,1745125843915,-500.0,0.00019178,2]
[358423297,1745125843927,-697.01,0.00019178,2]
[358423298,1745125843937,-500.0,0.00019178,2]
[358423299,1745125843947,-500.0,0.00019178,2]
[358423300,1745125843956,-500.0,0.00019178,2]
[358423301,1745125843966,-500.0,0.00019178,2]
[358423302,1745125843976,-891.49,0.00019178,2]
[358423303,1745125843986,-526.05,0.00019178,2]
[358423304,1745125843995,-500.0,0.00019178,2]
[358423305,1745125844005,-500.0,0.00019178,2]
[358423306,1745125844015,-500.0,0.00019178,2]
[358423307,1745125844024,-500.0,0.00019178,2]
[358423308,1745125844034,-500.0,0.00019178,2]
[358423309,1745125844043,-546.42,0.00019178,2]
[358423310,1745125844053,-500.0,0.00019178,2]
[358423311,1745125844063,-500.0,0.00019178,2]
[358423312,1745125844072,-500.0,0.00019178,2]
[358423313,1745125844081,-660.95,0.00019178,2]
[358423314,1745125844091,-500.0,0.00019178,2]
[358423315,1745125844100,-607.86,0.00019178,2]
[358423316,1745125844110,-500.0,0.00019178,2]
[358423317,1745125844119,-500.0,0.00019178,2]
[358423318,1745125844129,-500.0,0.00019178,2]
[358423319,1745125844138,-500.0,0.00019178,2]
[358423320,1745125844148,-500.0,0.00019178,2]
[358423321,1745125844158,-500.0,0.00019178,2]
[358423322,1745125844167,-500.0,0.00019178,2]
[358423323,1745125844176,-539.69,0.00019178,2]
[358423324,1745125844186,-500.0,0.00019178,2]
[358423325,1745125844196,-602.64,0.00019178,2]
[358423326,1745125844205,-817.27,0.00019178,2]
[358423327,1745125844215,-500.0,0.00019178,2]
[358423328,1745125844224,-500.0,0.00019178,2]
[358423329,1745125844234,-500.0,0.00019178,2]
[358423330,1745125844244,-666.87,0.00019178,2]
[358423331,1745125844253,-500.0,0.00019178,2]
[358423332,1745125844263,-500.0,0.00019178,2]
[358423333,1745125844272,-500.0,0.00019178,2]
[358423334,1745125844281,-397.58492181,0.00019178,2]
[358423335,1745125844291,-500.0,0.00019178,2]
[358423336,1745125844300,-500.0,0.00019178,2]
[358423337,1745125844309,-500.0,0.00019178,2]
[358423338,1745125844319,-771.24,0.00019178,2]
[358423339,1745125844329,-500.0,0.00019178,2]
[358423340,1745125844339,-1059.15,0.00019178,2]
[358423341,1745125844348,-579.95,0.00019178,2]
[358423342,1745125844358,-500.0,0.00019178,2]
[358423343,1745125844370,-500.0,0.00019178,2]
[358423344,1745125844380,-500.0,0.00019178,2]
[358423345,1745125844390,-500.0,0.00019178,2]
[358423346,1745125844400,-500.0,0.00019178,2]
[358423347,1745125844409,-583.52,0.00019178,2]
[358423348,1745125844418,-500.0,0.00019178,2]
[358423349,1745125844428,-500.0,0.00019178,2]
[358423350,1745125844437,-500.0,0.00019178,2]
[358423351,1745125844446,-500.0,0.00019178,2]
[358423352,1745125844455,-500.0,0.00019178,2]
[358423353,1745125844465,-500.0,0.00019178,2]
[358423354,1745125844475,-500.0,0.00019178,2]
[358423355,1745125844484,-516.62,0.00019178,2]
[358423356,1745125844493,-500.0,0.00019178,2]
[358423357,1745125844502,-501.51243168,0.00019178,2]
[358423358,1745125844511,-526.03,0.00019178,2]
[358423359,1745125844520,-1375.14,0.00019178,2]
[358423360,1745125844530,-500.0,0.00019178,2]
[358423361,1745125844539,-559.34,0.00019178,2]
[358423362,1745125844548,-500.0,0.00019178,2]
[358423363,1745125844558,-500.0,0.00019178,2]
[358423364,1745125844567,-500.0,0.00019178,2]
[358423365,1745125844576,-500.0,0.00019178,2]
[358423366,1745125844586,-500.0,0.00019178,2]
[358423367,1745125844595,-500.0,0.00019178,2]
[358423368,1745125844604,-664.08,0.00019178,2]
[358423369,1745125844614,-3037.86,0.00019178,2]
[358423370,1745125844624,-500.0,0.00019178,2]
[358423371,1745125844634,-500.0,0.00019178,2]
[358423372,1745125844643,-582.51063388,0.00019178,2]
[358423373,1745125844653,-521.2,0.00019178,2]
[358423374,1745125844663,-192.47207142,0.00019178,2]
[358423375,1745125844673,-500.0,0.00019178,2]
[358423376,1745125844683,-500.0,0.00019178,2]
[358423377,1745125844692,-214.11699675,0.00019178,2]
[358423378,1745125844702,-1044.13,0.00019178,2]
[358423379,1745125844715,-500.0,0.00019178,2]
[358423380,1745125844725,-433.87043562,0.00019178,2]
[358423381,1745125844735,-725.56,0.00019178,2]
[358423382,1745125844745,-500.0,0.00019178,2]
[358423383,1745125844754,-500.0,0.00019178,2]
[358423384,1745125844764,-640.09,0.00019178,2]
[358423385,1745125844774,-624.8,0.00019178,2]
[358423386,1745125844784,-615.35,0.00019178,2]
[358423387,1745125844794,-500.0,0.00019178,2]
[358423388,1745125844804,-6907.66,0.00019178,2]
[358423389,1745125844814,-500.0,0.00019178,2]
[358423390,1745125844824,-500.0,0.00019178,2]
[358423391,1745125844843,-538.19,0.00019178,2]
[358423392,1745125844854,-500.0,0.00019178,2]
[358423393,1745125844864,-500.0,0.00019178,2]
[358423394,1745125844874,-758.58,0.00019178,2]
[358423395,1745125844884,-538.43,0.00019178,2]
[358423396,1745125844895,-500.0,0.00019178,2]
[358423397,1745125844905,-966.49,0.00019178,2]
[358423398,1745125844915,-409.41887251,0.00019178,2]
[358423399,1745125844925,-500.0,0.00019178,2]
[358423400,1745125844935,-500.0,0.00019178,2]
[358423401,1745125844944,-811.19,0.00019178,2]
[358423402,1745125844954,-500.0,0.00019178,2]
[358423403,1745125844964,-746.04,0.00019178,2]
[358423404,1745125844974,-500.0,0.00019178,2]
[358423405,1745125844985,-612.04,0.00019178,2]
[358423406,1745125844995,-1155.97,0.00019178,2]
[358423407,1745125845004,-500.0,0.00019178,2]
[358423408,1745125845014,-2033.55,0.00019178,2]
[358423409,1745125845024,-589.08,0.00019178,2]
[358423410,1745125845034,-500.0,0.00019178,2]
[358423411,1745125845044,-667.33,0.00019178,2]
[358423412,1745125845054,-1565.24,0.00019178,2]
[358423415,1745125845271,-789.23,0.00019178,2]
[358423417,1745125845281,-500.0,0.00019178,2]
[358423418,1745125845291,-500.0,0.00019178,2]
[358423419,1745125845301,-535.03716542,0.00019178,2]
[358423420,1745125845312,-506.93384636,0.00019178,2]
[358423421,1745125845321,-500.0,0.00019178,2]
[358423422,1745125845331,-748.55,0.00019178,2]
[358423423,1745125845341,-500.0,0.00019178,2]
[358423424,1745125845351,-500.0,0.00019178,2]
[358423425,1745125845363,-500.0,0.00019178,2]
[358423426,1745125845372,-500.0,0.00019178,2]
[358423427,1745125845381,-1853.86,0.00019178,2]
[358423428,1745125845391,-2474.0,0.00019178,2]
[358423429,1745125845401,-500.0,0.00019178,2]
[358423430,1745125845410,-500.0,0.00019178,2]
[358423431,1745125845420,-536.95954837,0.00019178,2]
[358423432,1745125845429,-500.0,0.00019178,2]
[358423433,1745125845440,-650.09,0.00019178,2]
[358423434,1745125845450,-4176.79,0.00019178,2]
[358423435,1745125845460,-505.78892999,0.00019178,2]
[358423436,1745125845469,-500.0,0.00019178,2]
[358423437,1745125845479,-500.0,0.00019178,2]
[358423438,1745125845489,-500.0,0.00019178,2]
[358423439,1745125845499,-500.0,0.00019178,2]
[358423440,1745125845509,-500.0,0.00019178,2]